bitfinex/quotes_SOLUSD_20230905
["timestamp","ask_amount","ask_price","bid_price","bid_amount"]
[1693937061822,55.0,20.362,20.346,27.667]
[1693937062225,91.9166,20.361,20.346,27.667]
[1693937062523,55.0,20.36,20.346,27.667]
[1693937063823,55.0,20.36,20.35,36.905]
[1693937064221,55.0,20.36,20.35,29.24]
[1693937067027,55.0,20.36,20.35,36.905]
[1693937070919,55.0,20.36,20.35,29.24]
[1693937108069,62.662,20.36,20.35,29.24]
[1693937111165,55.0,20.36,20.35,29.24]
[1693937111360,55.0,20.36,20.35,36.905]
[1693937111971,55.0,20.36,20.35,29.24]
[1693937113470,91.9166,20.361,20.35,36.905]
[1693937113857,7.66,20.365,20.35,36.905]
[1693937115767,55.0,20.364,20.35,36.905]
[1693937116073,7.66,20.364,20.35,36.905]
[1693937116276,55.0,20.363,20.35,36.905]
[1693937122673,55.0,20.364,20.35,36.905]
[1693937127581,92.0325,20.365,20.35,36.905]
[1693937128278,99.6925,20.365,20.35,36.905]
[1693937128778,92.0325,20.365,20.35,36.905]
[1693937132086,99.6925,20.365,20.35,36.905]
[1693937137691,7.66,20.365,20.351,55.0]
[1693937137890,96.3493,20.373,20.355,32.423]
[1693937138096,96.3493,20.373,20.36,29.24]
[1693937138276,96.3493,20.373,20.361,7.661]
[1693937139191,96.3493,20.373,20.362,20.0]
[1693937139385,96.3493,20.373,20.365,7.66]
[1693937139695,96.3493,20.373,20.366,20.0]
[1693937139988,7.655,20.378,20.366,20.0]
[1693937140295,1.09668469,20.377,20.366,20.0]
[1693937142599,56.09668469,20.377,20.366,20.0]
[1693937144386,56.09668469,20.377,20.365,7.66]
[1693937144994,56.09668469,20.377,20.366,27.659]
[1693937155105,1.09668469,20.377,20.37,29.24]
[1693937155304,1.09668469,20.382,20.37,29.24]
[1693937155611,63.74968469,20.382,20.37,29.24]
[1693937156202,29.24,20.379,20.37,29.24]
[1693937156405,56.09668469,20.378,20.37,29.24]
[1693937160503,56.09668469,20.378,20.361,24.53532786]
[1693937160708,56.09668469,20.378,20.36,29.24]
[1693937160709,93.6105,20.377,20.36,29.24]
[1693937160908,7.657,20.372,20.36,29.24]
[1693937161296,55.0,20.371,20.36,29.24]
[1693937161495,1.09668469,20.376,20.36,29.24]
[1693937161796,56.09668469,20.376,20.36,29.24]
[1693937162500,126.04863369,20.376,20.36,29.24]
[1693937163209,7.657,20.373,20.36,29.24]
[1693937163510,55.0,20.372,20.36,36.901]
[1693937163712,126.04863369,20.376,20.36,36.901]
[1693937165206,7.657,20.374,20.36,36.901]
[1693937165412,55.0,20.373,20.36,36.901]
[1693937171311,55.0,20.373,20.36,29.24]
[1693937171515,62.656,20.375,20.36,36.901]
[1693937171907,62.656,20.375,20.36,29.24]
[1693937177018,62.656,20.375,20.36,36.901]
[1693937179828,62.656,20.375,20.36,29.24]
[1693937180618,62.656,20.375,20.36,36.901]
[1693937184535,69.951949,20.376,20.36,61.43632786]
[1693937184831,78.70463369,20.376,20.36,61.43632786]
[1693937185726,55.0,20.375,20.36,61.43632786]
[1693937189422,62.656,20.375,20.36,61.43632786]
[1693937206028,55.0,20.375,20.36,61.43632786]
[1693937207343,62.656,20.375,20.36,61.43632786]
[1693937209543,62.656,20.375,20.36,29.24]
[1693937209952,62.656,20.375,20.355,24.53532786]
[1693937210249,62.656,20.375,20.351,24.53532786]
[1693937210441,62.656,20.375,20.352,20.0]
[1693937211243,62.656,20.375,20.352,44.53532786]
[1693937212151,62.656,20.375,20.352,52.19932786]
[1693937213248,62.656,20.375,20.35,36.905]
[1693937213450,29.24,20.37,20.35,29.24]
[1693937213650,7.66,20.364,20.35,29.24]
[1693937213849,55.0,20.363,20.35,29.24]
[1693937214257,62.661,20.363,20.35,29.24]
[1693937214749,7.662,20.358,20.34,29.24]
[1693937214936,7.662,20.358,20.342,24.53532786]
[1693937215137,62.663,20.357,20.342,24.53532786]
[1693937216046,62.663,20.357,20.342,32.20332786]
[1693937216770,62.663,20.357,20.343,20.0]
[1693937217249,55.0,20.357,20.343,27.668]
[1693937217453,55.0,20.357,20.344,24.53532786]
[1693937217661,55.0,20.357,20.344,32.20232786]
[1693937217865,55.0,20.358,20.345,20.0]
[1693937219450,62.662,20.358,20.345,20.0]
[1693937219845,62.662,20.358,20.343,20.0]
[1693937220246,62.662,20.358,20.343,27.668]
[1693937220559,55.0,20.358,20.343,27.668]
[1693937220757,55.0,20.359,20.343,27.668]
[1693937221147,62.662,20.359,20.343,27.668]
[1693937221348,62.662,20.359,20.343,52.20332786]
[1693937227267,62.662,20.359,20.34,29.24]
[1693937228363,62.662,20.359,20.341,24.53532786]
[1693937228669,62.662,20.359,20.343,7.668]
[1693937228860,62.662,20.359,20.341,32.20432786]
[1693937229760,62.662,20.359,20.341,24.53532786]
[1693937230362,62.662,20.359,20.341,32.20432786]
[1693937235273,94.2433,20.362,20.342,55.0]
[1693937235473,94.2433,20.362,20.35,29.24]
[1693937236266,101.9043,20.362,20.35,29.24]
[1693937236672,55.0,20.361,20.35,29.24]
[1693937237180,55.0,20.361,20.351,7.665]
[1693937237473,94.2433,20.362,20.35,29.24]
[1693937237672,94.2433,20.362,20.35,36.905]
[1693937239372,94.2433,20.362,20.35,61.44032786]
[1693937240078,46.73416707,20.371,20.351,44.53532786]
[1693937240268,7.658,20.371,20.357,7.663]
[1693937240471,97.4072,20.37,20.357,7.663]
[1693937240671,97.4072,20.37,20.355,7.663]
[1693937240870,141.942528,20.37,20.355,7.663]
[1693937241478,55.0,20.369,20.355,7.663]
[1693937243882,62.659,20.369,20.355,7.663]
[1693937248385,55.0,20.369,20.355,7.663]
[1693937248786,62.658,20.369,20.355,7.663]
[1693937248982,62.658,20.369,20.351,7.665]
[1693937249283,87.401,20.369,20.35,29.24]
[1693937249787,87.401,20.369,20.35,36.905]
[1693937267894,185.098,20.369,20.35,29.24]
[1693937269590,87.401,20.369,20.35,29.24]
[1693937270897,126.88182595,20.369,20.35,29.24]
[1693937275407,12.54253344,20.368,20.344,24.53532786]
[1693937275592,32.414,20.361,20.345,20.0]
[1693937275795,55.0,20.36,20.345,20.0]
[1693937275999,7.663,20.358,20.345,20.0]
[1693937276308,55.0,20.357,20.343,20.0]
[1693937276508,62.663,20.357,20.343,20.0]
[1693937277306,62.663,20.357,20.343,27.668]
[1693937277489,96.9091,20.356,20.343,27.668]
[1693937278088,96.9091,20.356,20.343,20.0]
[1693937278294,55.0,20.355,20.343,7.668]
[1693937278509,55.0,20.355,20.344,20.0]
[1693937279606,62.664,20.355,20.344,20.0]
[1693937279808,62.664,20.355,20.341,20.0]
[1693937279997,62.664,20.355,20.341,44.53532786]
[1693937280412,55.0,20.355,20.342,24.53532786]
[1693937280616,55.0,20.355,20.343,20.0]
[1693937280910,55.0,20.355,20.34,29.24]
[1693937281299,7.664,20.354,20.333,24.53532786]
[1693937281493,7.666,20.349,20.334,27.671]
[1693937281698,55.0,20.348,20.335,24.53532786]
[1693937282103,95.0217,20.347,20.335,24.53532786]
[1693937282309,55.0,20.346,20.336,7.671]
[1693937283201,55.0,20.347,20.334,7.671]
[1693937283407,62.667,20.347,20.335,20.0]
[1693937283614,62.667,20.347,20.332,7.672]
[1693937283803,62.667,20.347,20.333,44.53532786]
[1693937284405,55.0,20.347,20.333,44.53532786]
[1693937284625,55.0,20.347,20.334,7.671]
[1693937284807,55.0,20.347,20.335,27.671]
[1693937285617,55.0,20.347,20.335,20.0]
[1693937285818,55.0,20.347,20.334,27.671]
[1693937287221,55.0,20.347,20.33,29.24]
[1693937287413,7.667,20.346,20.33,29.24]
[1693937287812,55.0,20.345,20.33,29.24]
[1693937288014,7.668,20.343,20.33,29.24]
[1693937288223,55.0,20.342,20.33,29.24]
[1693937288720,158.8009,20.342,20.33,29.24]
[1693937289225,158.8009,20.342,20.32,44.06587309]
[1693937289423,158.8009,20.342,20.323,7.675]
[1693937289618,158.8009,20.342,20.325,7.675]
[1693937290216,158.8009,20.342,20.321,44.53532786]
[1693937290418,158.8009,20.342,20.323,7.675]
[1693937290612,158.8009,20.342,20.324,20.0]
[1693937290937,158.8009,20.342,20.324,27.675]
[1693937291521,158.8009,20.342,20.324,7.675]
[1693937292322,29.24,20.34,20.324,7.675]
[1693937292630,7.671,20.336,20.322,7.676]
[1693937293125,55.0,20.335,20.322,7.676]
[1693937293424,62.671,20.335,20.322,7.676]
[1693937293816,93.494,20.334,20.322,7.676]
[1693937294017,55.0,20.333,20.322,7.676]
[1693937297408,155.208,20.334,20.32,29.24]
[1693937298820,55.0,20.333,20.32,29.24]
[1693937299221,55.0,20.333,20.321,7.676]
[1693937302329,62.672,20.333,20.321,7.676]
[1693937304433,62.672,20.333,20.32,29.24]
[1693937304931,55.0,20.333,20.32,36.916]
[1693937307929,93.494,20.334,20.321,20.0]
[1693937308135,93.494,20.334,20.324,7.675]
[1693937308336,7.669,20.341,20.325,20.0]
[1693937308536,95.4764,20.34,20.33,29.24]
[1693937308733,7.669,20.341,20.33,29.24]
[1693937309523,29.24,20.34,20.33,29.24]
[1693937309725,36.909,20.34,20.324,7.675]
[1693937309945,36.909,20.34,20.325,20.0]
[1693937310145,95.4764,20.339,20.323,27.675]
[1693937310345,7.67,20.337,20.323,27.675]
[1693937310838,55.0,20.336,20.323,27.675]
[1693937311243,62.671,20.336,20.323,27.675]
[1693937315154,62.671,20.336,20.323,20.0]
[1693937315336,62.671,20.336,20.321,20.0]
[1693937316135,62.671,20.336,20.322,7.676]
[1693937316444,62.671,20.336,20.32,29.24]
[1693937316648,62.671,20.336,20.314,24.81]
[1693937316649,62.671,20.336,20.314,7.679]
[1693937316830,62.671,20.336,20.315,20.0]
[1693937317225,62.671,20.336,20.315,27.678]
[1693937322140,7.673,20.329,20.315,27.678]
[1693937322343,62.674,20.328,20.315,27.678]
[1693937323052,142.479695,20.328,20.315,27.678]
[1693937323950,98.9258,20.327,20.315,27.678]
[1693937324250,55.0,20.326,20.315,27.678]
[1693937324653,55.0,20.326,20.315,20.0]
[1693937324837,55.0,20.326,20.314,20.0]
[1693937325337,62.675,20.326,20.314,20.0]
[1693937326245,62.675,20.326,20.311,7.68]
[1693937326751,106.6008,20.325,20.311,7.68]
[1693937326933,62.675,20.324,20.311,7.18]
[1693937327136,0.49999999,20.323,20.311,7.18]
[1693937327336,79.805695,20.328,20.311,7.18]
[1693937327337,79.805695,20.328,20.315,7.678]
[1693937327549,7.673,20.33,20.32,29.24]
[1693937328351,24.788,20.331,20.32,29.24]
[1693937329042,32.461,20.331,20.32,29.24]
[1693937330237,0.49999999,20.33,20.32,29.24]
[1693937330749,55.49999999,20.33,20.32,29.24]
[1693937331155,0.49999999,20.33,20.32,36.916]
[1693937331846,24.788,20.331,20.32,36.916]
[1693937332040,96.6426,20.336,20.32,36.916]
[1693937332041,96.6426,20.336,20.321,99.53532786]
[1693937332245,96.6426,20.336,20.33,29.24]
[1693937336765,96.6426,20.336,20.33,36.913]
[1693937336968,96.6426,20.336,20.33,29.24]
[1693937352378,55.0,20.335,20.33,29.24]
[1693937352569,55.0,20.335,20.326,7.674]
[1693937353571,96.6426,20.336,20.326,7.674]
[1693937353876,55.0,20.335,20.326,7.674]
[1693937357875,55.0,20.335,20.321,78.66532786]
[1693937358170,55.0,20.335,20.324,7.675]
[1693937358375,55.0,20.335,20.325,20.0]
[1693937358679,55.0,20.335,20.325,27.675]
[1693937359064,55.0,20.335,20.33,29.24]
[1693937359264,96.6426,20.336,20.33,29.24]
[1693937383805,96.6426,20.336,20.326,7.674]
[1693937390509,0.49999999,20.335,20.326,7.674]
[1693937391013,7.67,20.337,20.325,27.675]
[1693937391400,0.49999999,20.336,20.325,27.675]
[1693937393095,7.67,20.337,20.325,27.675]
[1693937393604,0.49999999,20.336,20.325,27.675]
[1693937394909,0.49999999,20.336,20.325,52.472]
[1693937395100,0.49999999,20.339,20.325,27.675]
[1693937395301,55.49999999,20.339,20.33,29.24]
[1693937395714,63.16999999,20.339,20.33,29.24]
[1693937397510,63.16999999,20.339,20.327,7.674]
[1693937401309,63.16999999,20.339,20.325,20.0]
[1693937401512,63.16999999,20.339,20.322,27.676]
[1693937402196,63.16999999,20.339,20.322,7.676]
[1693937402402,63.16999999,20.339,20.32,36.917]
[1693937403299,63.16999999,20.339,20.32,29.24]
[1693937404315,63.16999999,20.339,20.32,36.917]
[1693937408812,63.16999999,20.339,20.32,29.24]
[1693937414721,8.16999999,20.339,20.32,29.24]
[1693937415520,8.16999999,20.339,20.321,7.676]
[1693937415722,8.16999999,20.339,20.32,29.24]
[1693937416219,7.672,20.333,20.32,29.24]
[1693937416421,0.49999999,20.331,20.32,29.24]
[1693937417025,7.673,20.331,20.32,29.24]
[1693937417321,55.0,20.33,20.32,29.24]
[1693937417528,55.0,20.33,20.32,36.916]
[1693937417715,29.24,20.331,20.32,36.916]
[1693937417914,0.49999999,20.33,20.32,61.45132786]
[1693937418110,0.49999999,20.334,20.32,61.45132786]
[1693937418312,0.49999999,20.334,20.321,24.53532786]
[1693937418517,0.49999999,20.334,20.324,7.675]
[1693937419127,0.49999999,20.334,20.322,7.676]
[1693937419535,55.49999999,20.334,20.322,7.676]
[1693937420116,8.17199999,20.334,20.322,7.676]
[1693937420310,7.672,20.334,20.323,20.0]
[1693937420824,0.49999999,20.336,20.324,7.675]
[1693937421216,0.49999999,20.336,20.325,20.0]
[1693937421416,0.49999999,20.336,20.325,27.675]
[1693937422110,55.49999999,20.336,20.325,27.675]
[1693937426020,0.49999999,20.336,20.321,24.53532786]
[1693937426331,7.671,20.336,20.323,7.675]
[1693937426536,0.49999999,20.335,20.324,20.0]
[1693937427736,55.49999999,20.335,20.324,20.0]
[1693937429036,0.49999999,20.335,20.325,7.675]
[1693937429336,29.24,20.337,20.325,7.675]
[1693937429544,0.49999999,20.336,20.325,7.675]
[1693937430640,29.24,20.337,20.325,7.675]
[1693937430836,55.49999999,20.336,20.325,7.675]
[1693937431547,55.49999999,20.336,20.324,20.0]
[1693937431548,63.17099999,20.336,20.324,20.0]
[1693937431926,63.17099999,20.336,20.322,20.0]
[1693937432131,55.49999999,20.336,20.324,7.675]
[1693937432433,55.49999999,20.336,20.325,20.0]
[1693937432744,55.49999999,20.336,20.326,7.674]
[1693937434244,55.49999999,20.336,20.325,20.0]
[1693937437357,55.49999999,20.336,20.325,27.675]
[1693937441736,63.17099999,20.336,20.325,20.0]
[1693937441939,63.17099999,20.336,20.323,20.0]
[1693937442151,63.17099999,20.336,20.323,27.675]
[1693937442451,55.49999999,20.336,20.323,27.675]
[1693937452452,55.49999999,20.336,20.33,29.24]
[1693937452649,55.0,20.336,20.33,29.24]
[1693937455055,0.49999999,20.338,20.33,29.24]
[1693937455256,8.16999999,20.339,20.33,29.24]
[1693937456262,55.0,20.338,20.33,29.24]
[1693937456461,0.49999999,20.337,20.33,29.24]
[1693937458368,0.49999999,20.338,20.33,29.24]
[1693937470069,8.16999999,20.338,20.33,29.24]
[1693937470280,0.49999999,20.338,20.33,29.24]
[1693937476882,0.49999999,20.345,20.331,7.672]
[1693937477265,0.49999999,20.347,20.331,7.672]
[1693937477471,0.49999999,20.348,20.332,24.53532786]
[1693937477675,0.49999999,20.348,20.336,7.67]
[1693937477984,19.676304,20.347,20.336,7.67]
[1693937478161,55.49999999,20.346,20.336,7.67]
[1693937478866,0.49999999,20.346,20.34,29.24]
[1693937479073,8.16499999,20.353,20.34,29.24]
[1693937480080,37.40499999,20.353,20.34,29.24]
[1693937480770,55.0,20.352,20.34,29.24]
[1693937480981,0.49999999,20.351,20.34,29.24]
[1693937482969,8.16499999,20.351,20.34,29.24]
[1693937483167,0.49999999,20.349,20.34,29.24]
[1693937484183,7.666,20.348,20.34,29.24]
[1693937484375,0.49999999,20.347,20.34,29.24]
[1693937484682,0.49999999,20.349,20.34,29.24]
[1693937485273,0.49999999,20.349,20.34,36.909]
[1693937485479,0.49999999,20.35,20.34,36.909]
[1693937485783,0.49999999,20.35,20.34,29.24]
[1693937485978,0.49999999,20.352,20.34,29.24]
[1693937486382,8.16499999,20.352,20.34,29.24]
[1693937486875,0.49999999,20.352,20.34,29.24]
[1693937487097,55.49999999,20.352,20.34,29.24]
[1693937487470,0.49999999,20.352,20.34,36.909]
[1693937487676,0.49999999,20.353,20.34,36.909]
[1693937488469,0.49999999,20.355,20.34,36.909]
[1693937488672,55.49999999,20.355,20.34,36.909]
[1693937488883,54.099,20.353,20.34,36.909]
[1693937489084,55.49999999,20.352,20.34,36.909]
[1693937489482,0.49999999,20.352,20.34,36.909]
[1693937489682,0.49999999,20.355,20.34,36.909]
[1693937490088,0.49999999,20.355,20.341,55.0]
[1693937490285,0.49999999,20.357,20.343,7.668]
[1693937490874,30.83947699,20.357,20.343,7.668]
[1693937491277,55.0,20.356,20.343,7.668]
[1693937491491,0.49999999,20.355,20.343,7.668]
[1693937493988,0.49999999,20.356,20.343,7.668]
[1693937494185,55.49999999,20.356,20.343,7.668]
[1693937497578,0.49999999,20.356,20.343,7.668]
[1693937497796,0.49999999,20.356,20.35,29.24]
[1693937497985,0.49999999,20.359,20.35,29.24]
[1693937498185,55.49999999,20.359,20.35,29.24]
[1693937499598,0.49999999,20.359,20.35,29.24]
[1693937499893,0.49999999,20.36,20.35,29.24]
[1693937500899,8.16099999,20.362,20.35,29.24]
[1693937501991,55.0,20.361,20.35,29.24]
[1693937502188,7.662,20.359,20.35,29.24]
[1693937502389,0.49999999,20.358,20.35,29.24]
[1693937502697,55.49999999,20.358,20.35,29.24]
[1693937503398,0.49999999,20.356,20.35,29.24]
[1693937503796,0.49999999,20.359,20.35,29.24]
[1693937507488,8.16199999,20.359,20.35,29.24]
[1693937507795,55.0,20.358,20.35,29.24]
[1693937507998,0.49999999,20.357,20.35,29.24]
[1693937509696,0.49999999,20.358,20.35,29.24]
[1693937511704,0.49999999,20.359,20.35,29.24]
[1693937520308,0.49999999,20.36,20.35,29.24]
[1693937528713,0.49999999,20.361,20.35,29.24]
[1693937529323,7.662,20.36,20.35,29.24]
[1693937529526,8.16299999,20.358,20.35,29.24]
[1693937529712,55.0,20.357,20.35,29.24]
[1693937530119,0.49999999,20.356,20.35,29.24]
[1693937532824,0.49999999,20.356,20.351,7.665]
[1693937533128,0.49999999,20.356,20.35,29.24]
[1693937534143,8.16099999,20.362,20.35,29.24]
[1693937534341,55.0,20.361,20.35,29.24]
[1693937534538,0.49999999,20.36,20.35,29.24]
[1693937542138,8.16199999,20.36,20.35,29.24]
[1693937542439,55.0,20.359,20.35,29.24]
[1693937542640,0.49999999,20.358,20.35,29.24]
[1693937547955,0.49999999,20.359,20.35,29.24]
[1693937555060,0.49999999,20.36,20.35,29.24]
[1693937555358,8.16199999,20.36,20.35,29.24]
[1693937555562,0.49999999,20.358,20.35,29.24]
[1693937571275,0.49999999,20.362,20.35,36.905]
[1693937571573,55.49999999,20.362,20.35,36.905]
[1693937593080,0.49999999,20.362,20.35,36.905]
[1693937593285,7.659,20.367,20.35,36.905]
[1693937593487,0.49999999,20.366,20.35,36.905]
[1693937593876,7.66,20.365,20.35,36.905]
[1693937594079,0.49999999,20.364,20.35,36.905]
[1693937594983,55.49999999,20.364,20.35,36.905]
[1693937599695,0.49999999,20.364,20.35,36.905]
[1693937599893,55.49999999,20.365,20.35,36.905]
[1693937600188,0.49999999,20.365,20.351,55.0]
[1693937600381,0.49999999,20.365,20.352,7.664]
[1693937600693,0.49999999,20.365,20.353,55.0]
[1693937601296,0.49999999,20.366,20.353,55.0]
[1693937601497,0.49999999,20.366,20.36,29.24]
[1693937603484,8.15999999,20.366,20.36,29.24]
[1693937604394,8.15999999,20.366,20.35,53.77532786]
[1693937604595,8.15999999,20.366,20.351,55.0]
[1693937605590,55.0,20.365,20.351,55.0]
[1693937605792,7.661,20.362,20.351,55.0]
[1693937605992,0.49999999,20.361,20.351,55.0]
[1693937607288,8.16099999,20.361,20.35,29.24]
[1693937608796,0.49999999,20.361,20.35,29.24]
[1693937608992,0.49999999,20.362,20.35,29.24]
[1693937610905,8.16099999,20.362,20.35,29.24]
[1693937612286,0.49999999,20.362,20.35,29.24]
[1693937612480,8.15999999,20.364,20.35,29.24]
[1693937615094,8.16099999,20.362,20.35,29.24]
[1693937615405,7.662,20.358,20.34,76.28786977]
[1693937615595,0.49999999,20.357,20.341,20.0]
[1693937615807,7.663,20.356,20.341,20.0]
[1693937616008,55.0,20.355,20.341,20.0]
[1693937616300,7.663,20.356,20.342,7.668]
[1693937616606,55.0,20.355,20.343,20.0]
[1693937616790,55.0,20.355,20.341,20.0]
[1693937617297,55.0,20.355,20.341,27.669]
[1693937617496,0.49999999,20.354,20.341,27.669]
[1693937617696,0.49999999,20.354,20.341,52.20432786]
[1693937619603,0.49999999,20.354,20.341,20.0]
[1693937620403,0.49999999,20.354,20.341,52.20432786]
[1693937620611,0.49999999,20.356,20.342,24.53532786]
[1693937620906,100.2133,20.359,20.342,24.53532786]
[1693937620907,0.49999999,20.358,20.344,7.667]
[1693937621100,0.49999999,20.358,20.345,20.0]
[1693937621302,0.49999999,20.358,20.347,7.666]
[1693937621701,55.49999999,20.358,20.347,7.666]
[1693937624308,55.49999999,20.358,20.35,29.24]
[1693937627116,55.49999999,20.358,20.345,27.667]
[1693937629210,55.49999999,20.358,20.345,20.0]
[1693937629410,63.16299999,20.358,20.342,27.668]
[1693937632616,55.49999999,20.358,20.342,27.668]
[1693937632920,55.49999999,20.358,20.342,52.20332786]
[1693937636020,55.49999999,20.358,20.343,24.53532786]
[1693937636214,55.49999999,20.358,20.346,7.667]
[1693937642626,55.49999999,20.358,20.344,7.667]
[1693937642827,55.49999999,20.358,20.345,20.0]
[1693937643623,55.49999999,20.358,20.345,27.667]
[1693937644826,0.49999999,20.356,20.345,20.0]
[1693937645022,55.49999999,20.356,20.343,20.0]
[1693937645910,55.49999999,20.356,20.343,27.668]
[1693937647230,55.0,20.355,20.343,27.668]
[1693937647420,0.49999999,20.354,20.343,27.668]
[1693937647621,55.0,20.358,20.343,27.668]
[1693937647622,0.49999999,20.357,20.343,27.668]
[1693937656833,0.49999999,20.357,20.343,52.443]
[1693937657520,0.49999999,20.357,20.343,76.97832786]
[1693937665835,0.49999999,20.357,20.35,29.24]
[1693937666140,55.0,20.358,20.35,29.24]
[1693937666528,0.49999999,20.357,20.35,29.24]
[1693937666736,0.49999999,20.362,20.35,29.24]
[1693937667034,8.16099999,20.362,20.35,29.24]
[1693937667927,55.0,20.361,20.35,29.24]
[1693937668232,0.49999999,20.36,20.35,29.24]
[1693937671238,8.16199999,20.36,20.35,29.24]
[1693937671427,0.49999999,20.358,20.35,29.24]
[1693937682451,0.49999999,20.358,20.35,36.905]
[1693937683952,0.49999999,20.358,20.35,29.24]
[1693937684650,0.49999999,20.359,20.35,29.24]
[1693937698840,0.49999999,20.359,20.344,24.53532786]
[1693937698841,0.49999999,20.359,20.345,7.667]
[1693937702450,0.49999999,20.359,20.344,24.53532786]
[1693937702652,7.663,20.358,20.345,20.0]
[1693937702858,55.49999999,20.357,20.343,27.668]
[1693937706258,63.16299999,20.357,20.343,20.0]
[1693937706465,63.16299999,20.357,20.342,20.0]
[1693937706959,63.16299999,20.357,20.342,27.668]
[1693937708959,63.16299999,20.357,20.342,20.0]
[1693937709155,63.16299999,20.357,20.341,20.0]
[1693937709358,63.16299999,20.357,20.341,27.668]
[1693937711856,0.49999999,20.357,20.341,106.28032786]
[1693937712059,0.49999999,20.358,20.342,79.53532786]
[1693937712255,0.49999999,20.358,20.346,7.667]
[1693937714969,55.49999999,20.358,20.346,7.667]
[1693937720458,55.49999999,20.358,20.344,7.667]
[1693937720656,55.49999999,20.358,20.345,20.0]
[1693937721472,63.16299999,20.358,20.345,20.0]
[1693937721863,63.16299999,20.358,20.342,32.20332786]
[1693937722068,63.16299999,20.358,20.34,36.909]
[1693937722266,63.16299999,20.358,20.34,29.24]
[1693937723672,99.7638,20.357,20.34,29.24]
[1693937723875,7.664,20.354,20.34,29.24]
[1693937724071,0.49999999,20.353,20.34,29.24]
[1693937724378,63.16399999,20.353,20.34,29.24]
[1693937725474,92.40399999,20.353,20.34,29.24]
[1693937726572,92.40399999,20.353,20.331,38.44594154]
[1693937726775,92.40399999,20.353,20.332,20.0]
[1693937727658,92.40399999,20.353,20.332,27.672]
[1693937728869,92.40399999,20.353,20.332,52.20732786]
[1693937732874,132.56927298,20.353,20.332,52.20732786]
[1693937734272,132.56927298,20.353,20.333,24.53532786]
[1693937734461,132.56927298,20.353,20.334,20.0]
[1693937734664,132.56927298,20.353,20.335,7.671]
[1693937736869,147.39514607,20.353,20.335,7.671]
[1693937739782,25.68645071,20.352,20.335,7.671]
[1693937739982,7.665,20.35,20.335,7.671]
[1693937740173,55.49999999,20.349,20.335,7.671]
[1693937741585,0.49999999,20.347,20.335,7.671]
[1693937741786,55.49999999,20.347,20.335,7.671]
[1693937743384,63.16699999,20.347,20.334,20.0]
[1693937743587,63.16699999,20.347,20.331,20.0]
[1693937743787,55.49999999,20.347,20.332,7.672]
[1693937743982,55.49999999,20.347,20.333,20.0]
[1693937744285,55.49999999,20.347,20.333,27.672]
[1693937744783,55.49999999,20.347,20.333,20.0]
[1693937744986,63.16699999,20.347,20.332,20.0]